[Event "Slovakian ECo-C Extraliga 2024-25"]
[Site "Slovakia"]
[Date "2025.02.15"]
[Round "5"]
[White "Moroni, Luca Jr"]
[Black "Ftacnik, Lubomir"]
[Result "1-0"]
[Annotator "TA"]
[ECO "A30"]
[WhiteElo "2552"]
[BlackElo "2440"]
[PlyCount "83"]
[EventDate "2024.09.12"]
[EventType "team-tourn"]
[EventCountry "SVK"]
[SourceTitle "playchess.com"]
[Source "ChessBase"]
[SourceQuality "1"]
[TimeControl "5400+30"]

{[%evp 17,83,36,45,22,22,16,22,22,21,17,23,22,21,28,25,14,19,11,32,32,31,42,35,25,66,33,30,27,30,33,32,30,39,39,42,20,20,20,34,20,20,20,20,20,20,0,0,0,0,0,2,0,0,0,0,0,66,8,8,8,4578,1854,2462,1360,29969,29969,5691,3933]} 1. c4 {[%emt 0:00:10]} Nf6 {[%emt 0:00:29]} 2. Nc3 {[%emt 0:00:28]} c5 {[%emt 0:00:47]} 3. Nf3 {[%emt 0:00:45]} e6 {[%emt 0:00:43]} 4. g3 {[%emt 0:00:29]} b6 {[%emt 0:00:12]} 5. Bg2 {[%emt 0:00:26]} Bb7 {[%emt 0:00:01]} 6. O-O {[%emt 0:00:21]} Be7 {[%emt 0:00:15]} 7. Re1 {[%emt 0:00:28]} Ne4 {[%emt 0:04:23]} 8. Nxe4 {[%emt 0:04:22]} Bxe4 {[%emt 0:00:16]} 9. d3 {[%emt 0:00:04]} Bb7 {[%emt 0:00:16]} 10. e4 {[%emt 0:00:07] A30: Symmetrical English: Double Fianchetto and Hedgehog.} Nc6 {[%emt 0:00:42]} 11. d4 {[%emt 0:02:03]} cxd4 {[%emt 0:00:57]} 12. Nxd4 {[%emt 0:00:08] The position is equal.} Nxd4 {[%emt 0:05:47]} 13. Qxd4 {[%emt 0:00:07]} O-O {[%emt 0:00:10]} 14. Bf4 {[%emt 0:03:46]} Bc5 {[%emt 0:17:36]} 15. Qd2 {[%emt 0:08:05]} Qe7 {[%emt 0:01:01]} 16. Red1 {[%emt 0:01:44]} e5 {[%emt 0:07:57]} 17. Be3 {[%emt 0:03:53]} Rad8 $146 {[%emt 0:03:28]} (17... Bc6 18. Bxc5 bxc5 19. Qa5 f5 20. exf5 Bxg2 21. Kxg2 Rxf5 22. Rd2 d6 23. Qa6 Rf6 {½-½ Gelfand,B (2720)-Leko,P (2741) Moscow Tal Memorial Blitz 2008 (9)}) 18. Bxc5 {[%emt 0:03:31]} Qxc5 {[%emt 0:03:23]} 19. Rac1 {[%emt 0:07:15][%cal Ba1c1,Bc1c3,Bc3e3][%mdl 32]} d6 {[%emt 0:03:19]} 20. Rc3 {[%emt 0:08:33]} Bc8 {[%emt 0:04:15][%cal Bb7c8,Bc8e6,Be6f7][%mdl 32]} 21. Qe3 {[%emt 0:03:29]} Be6 {[%emt 0:03:00]} 22. b3 {[%emt 0:02:54]} Qxe3 {[%emt 0:04:20]} 23. Rxe3 {[%emt 0:00:57]} Rd7 {[%emt 0:00:07]} 24. f4 {[%emt 0:06:56][%cal Bf2f4,Bf4f5][%mdl 32] [#] f5 is the strong threat.} f6 {[%emt 0:00:08]} 25. f5 {[%emt 0:03:33]} Bf7 {[%emt 0:00:04]} 26. g4 {[%emt 0:01:58] Black is weak on the light squares} Rfd8 {[%emt 0:19:26]} 27. h4 {[%emt 0:01:51]} Kf8 {[%emt 0:00:07]} 28. Bf3 {[%emt 0:04:16]} h6 {[%emt 0:01:10]} 29. Be2 {[%emt 0:01:51]} Ke7 {[%emt 0:00:39]} 30. Kf2 {[%emt 0:00:48]} Rc7 {[%emt 0:03:04]} 31. Rg3 {[%emt 0:02:16]} b5 {[%emt 0:04:19]} 32. cxb5 {[%emt 0:04:20][%cal Oe2c4]} Rc2 $1 {[%emt 0:00:08]} 33. a4 {[%emt 0:00:31]} Rb2 {[%emt 0:00:56]} 34. Rc1 $36 {[%emt 0:01:37][%mdl 2048] White has some pressure.} Bxb3 {[%emt 0:04:29]} 35. g5 {[%emt 0:04:01]} hxg5 {[%emt 0:07:34]} 36. hxg5 {[%emt 0:00:02]} Bxa4 {[%emt 0:00:23]} (36... Rd7 $11) 37. Rc7+ {[%emt 0:05:24]} (37. gxf6+ $1 $14 gxf6 38. Rg7+ (38. Rc7+ Kf8 $16) 38... Kf8 39. Rb7 (39. Rxa7 Bxb5 40. Rh1 Kg8 $11)) 37... Kf8 $11 {[%emt 0:00:13]} 38. Rh3 {[%emt 0:02:51][%cal Rh3h8] [#]} Rxe2+ $4 {[%emt 0:02:02][%mdl 8192] This move loses the game for Black.} 39. Kxe2 $18 {[%emt 0:03:18][%cal Rh3h8]} Bxb5+ {[%emt 0:00:01]} 40. Ke3 {[%emt 0:00:21][%cal Rh3h8]} Rd7 {[%emt 0:01:36]} 41. Rh8+ {[%emt 0:04:54]} Ke7 {[%emt 0:00:30]} 42. Rcc8 {[%emt 0:01:40] Weighted Error Value: White=0.08 (flawless) /Black=0.58  Loses game:     	---       	Black=1      Mistake:       	White=1     	Black=1      Inaccurate:     	White=2     	Black=2      OK:         	White=10    	Black=17     Best:        	---       	Black=2      Strong:       	---       	Black=1} 1-0

[Event "Slovakian ECo-C Extraliga 2024-25"]
[Site "Slovakia"]
[Date "2025.02.15"]
[Round "5"]
[White "Piesik, Piotr"]
[Black "Bures, Jaroslav"]
[Result "1/2-1/2"]
[Annotator "ChessBase"]
[ECO "E20"]
[WhiteElo "2422"]
[BlackElo "2402"]
[PlyCount "72"]
[EventDate "2024.09.12"]
[EventType "team-tourn"]
[EventCountry "SVK"]
[SourceTitle "playchess.com"]
[Source "ChessBase"]
[SourceQuality "1"]
[TimeControl "5400+30"]

1. d4 {[%emt 0:00:06]} Nf6 {[%emt 0:00:04]} 2. c4 {[%emt 0:00:04]} e6 {[%emt 0:00:02]} 3. Nc3 {[%emt 0:00:05]} Bb4 {[%emt 0:00:04]} 4. Bf4 {[%emt 0:00:49]} c5 {[%emt 0:00:51]} 5. e3 {[%emt 0:01:11]} cxd4 {[%emt 0:00:04]} 6. exd4 {[%emt 0:00:10]} d5 {[%emt 0:00:05]} 7. c5 {[%emt 0:04:05]} Bxc3+ {[%emt 0:00:16]} 8. bxc3 {[%emt 0:00:05]} O-O {[%emt 0:00:04]} 9. Bd3 {[%emt 0:05:33]} b6 {[%emt 0:00:09]} 10. cxb6 {[%emt 0:30:18]} axb6 {[%emt 0:01:19]} 11. Nf3 {[%emt 0:00:20]} Ba6 {[%emt 0:01:35]} 12. O-O {[%emt 0:01:04]} Ne4 {[%emt 0:05:00]} 13. Bxa6 {[%emt 0:05:03]} Rxa6 {[%emt 0:00:07]} 14. Qb3 {[%emt 0:00:08]} Nd7 {[%emt 0:12:37]} 15. Rfc1 {[%emt 0:14:57]} Qf6 {[%emt 0:26:37]} 16. Be3 {[%emt 0:06:38]} Qe7 {[%emt 0:04:09]} 17. c4 {[%emt 0:00:54]} Ra3 {[%emt 0:00:13]} 18. Qb2 {[%emt 0:02:50]} dxc4 {[%emt 0:01:54]} 19. Rxc4 {[%emt 0:00:38]} Rfa8 {[%emt 0:00:15]} 20. Ne5 {[%emt 0:03:11]} Nef6 {[%emt 0:07:19]} 21. Bg5 {[%emt 0:09:25]} Qe8 {[%emt 0:11:56]} 22. Bxf6 {[%emt 0:03:17]} Nxf6 {[%emt 0:00:02]} 23. Rc7 {[%emt 0:01:31]} Qa4 {[%emt 0:03:26]} 24. h3 {[%emt 0:00:52]} Nd5 {[%emt 0:01:50]} 25. Rxf7 {[%emt 0:01:45]} Rxa2 {[%emt 0:01:28]} 26. Rxa2 {[%emt 0:00:06]} Qxa2 {[%emt 0:00:05]} 27. Qb5 {[%emt 0:05:07]} Qa1+ {[%emt 0:01:56]} 28. Kh2 {[%emt 0:00:04]} Qxd4 {[%emt 0:00:03]} 29. Nf3 {[%emt 0:00:14]} Qa4 {[%emt 0:02:20]} 30. Qxa4 {[%emt 0:02:38]} Rxa4 {[%emt 0:00:02]} 31. Rb7 {[%emt 0:00:08]} h6 {[%emt 0:04:41]} 32. Ne5 {[%emt 0:00:28]} Ra2 {[%emt 0:01:41]} 33. Kg3 {[%emt 0:00:16]} Rb2 {[%emt 0:00:03]} 34. h4 {[%emt 0:02:06]} Nf6 {[%emt 0:00:16]} 35. f3 {[%emt 0:00:09]} Kh7 {[%emt 0:05:24]} 36. Kh3 {[%emt 0:01:15]} Re2 {[%emt 0:05:02]} 1/2-1/2

[Event "Slovakian ECo-C Extraliga 2024-25"]
[Site "Slovakia"]
[Date "2025.02.15"]
[Round "5"]
[White "Jurcik, Martin"]
[Black "Zetocha, Claudiu Andrei"]
[Result "0-1"]
[Annotator "ChessBase"]
[ECO "B42"]
[WhiteElo "2349"]
[BlackElo "2283"]
[PlyCount "106"]
[EventDate "2024.09.12"]
[EventType "team-tourn"]
[EventCountry "SVK"]
[SourceTitle "playchess.com"]
[Source "ChessBase"]
[SourceQuality "1"]
[TimeControl "5400+30"]

1. e4 {[%emt 0:00:09]} c5 {[%emt 0:00:11]} 2. Nf3 {[%emt 0:00:30]} e6 {[%emt 0:00:07]} 3. d4 {[%emt 0:00:31]} cxd4 {[%emt 0:00:11]} 4. Nxd4 {[%emt 0:00:10]} a6 {[%emt 0:00:06]} 5. Bd3 {[%emt 0:00:52]} Nf6 {[%emt 0:04:18]} 6. Qe2 {[%emt 0:04:51]} d6 {[%emt 0:01:27]} 7. c4 {[%emt 0:07:42]} g6 {[%emt 0:20:40]} 8. Nc3 {[%emt 0:06:23]} Bg7 {[%emt 0:01:17]} 9. O-O {[%emt 0:06:56]} O-O {[%emt 0:01:48]} 10. Nb3 {[%emt 0:05:08]} Nbd7 {[%emt 0:09:20]} 11. Bf4 {[%emt 0:17:10]} Qc7 {[%emt 0:03:16]} 12. Rac1 {[%emt 0:06:36]} b6 {[%emt 0:03:11]} 13. Rfd1 {[%emt 0:10:47]} Nh5 {[%emt 0:10:37]} 14. Be3 {[%emt 0:01:34]} Bb7 {[%emt 0:01:02]} 15. Qd2 {[%emt 0:07:28]} Nhf6 {[%emt 0:09:19]} 16. f3 {[%emt 0:01:17]} Rfc8 {[%emt 0:08:44]} 17. Bf1 {[%emt 0:02:14]} Bf8 {[%emt 0:01:32]} 18. Qf2 {[%emt 0:03:15]} Rab8 {[%emt 0:03:32]} 19. Qh4 {[%emt 0:06:18]} Ne8 {[%emt 0:04:23]} 20. Nd4 {[%emt 0:00:45]} Ng7 {[%emt 0:01:48]} 21. b3 {[%emt 0:02:30]} Re8 {[%emt 0:00:24]} 22. Qf2 {[%emt 0:01:19]} Rbc8 {[%emt 0:02:13]} 23. Nde2 {[%emt 0:00:48]} Ba8 {[%emt 0:01:54]} 24. Nd4 {[%emt 0:03:37]} Qb8 {[%emt 0:00:43]} 25. Kh1 {[%emt 0:02:21]} Be7 {[%emt 0:00:07]} 26. Qd2 {[%emt 0:00:18]} Bd8 {[%emt 0:00:27]} 27. Bg1 {[%emt 0:01:52]} Bc7 {[%emt 0:00:59]} 28. Nc2 {[%emt 0:00:22]} Rcd8 {[%emt 0:02:55]} 29. Ne3 {[%emt 0:00:01]} Bc6 {[%emt 0:01:31]} 30. a4 {[%emt 0:00:13]} Bb7 {[%emt 0:00:35]} 31. Qb2 {[%emt 0:00:01]} f5 {[%emt 0:01:24]} 32. exf5 {[%emt 0:00:20]} gxf5 {[%emt 0:00:09]} 33. Re1 {[%emt 0:01:07]} Rf8 {[%emt 0:00:28]} 34. Rcd1 {[%emt 0:00:15]} Rf6 {[%emt 0:00:20]} 35. Ne2 {[%emt 0:01:39]} Rh6 {[%emt 0:00:41]} 36. h3 {[%emt 0:00:28]} Ne5 {[%emt 0:01:05]} 37. Nd4 {[%emt 0:00:05]} f4 {[%emt 0:00:53]} 38. Nec2 {[%emt 0:00:29]} Ng6 {[%emt 0:00:20]} 39. Nxe6 {[%emt 0:00:32]} Nxe6 {[%emt 0:00:28]} 40. Rxe6 {[%emt 0:00:02]} Bc8 {[%emt 0:00:41]} 41. Ree1 {[%emt 0:00:00]} Ne5 {[%emt 0:00:00]} 42. Bh2 {[%emt 0:00:00]} Rf8 {[%emt 0:00:00]} 43. Qd4 {[%emt 0:00:00]} Bb7 {[%emt 0:00:00]} 44. Be2 {[%emt 0:00:00]} a5 {[%emt 0:00:00]} 45. Na3 {[%emt 0:00:00]} Qd8 {[%emt 0:00:00]} 46. Nb5 {[%emt 0:00:00]} Bb8 {[%emt 0:00:00]} 47. Nc3 {[%emt 0:01:54]} Rxh3 {[%emt 0:00:00]} 48. Nd5 {[%emt 0:03:08]} Rh4 {[%emt 0:00:00]} 49. Qxb6 {[%emt 0:00:31]} Qg5 {[%emt 0:00:00]} 50. Qxb7 {[%emt 0:00:28]} Qg3 {[%emt 0:00:00]} 51. Nf6+ {[%emt 0:00:33]} Rxf6 {[%emt 0:00:00]} 52. Kg1 {[%emt 0:00:27]} Rxh2 {[%emt 0:00:00]} 53. Bf1 {[%emt 0:00:19]} Ba7+ {[%emt 0:00:00]} 0-1

[Event "Slovakian ECo-C Extraliga 2024-25"]
[Site "Slovakia"]
[Date "2025.02.15"]
[Round "5"]
[White "Jakab, Bela"]
[Black "Cernousek, Lukas"]
[Result "1/2-1/2"]
[Annotator "ChessBase"]
[ECO "B51"]
[WhiteElo "2345"]
[BlackElo "2425"]
[PlyCount "66"]
[EventDate "2024.09.12"]
[EventType "team-tourn"]
[EventCountry "SVK"]
[SourceTitle "playchess.com"]
[Source "ChessBase"]
[SourceQuality "1"]
[TimeControl "5400+30"]

1. e4 {[%emt 0:00:03]} c5 {[%emt 0:00:05]} 2. Nf3 {[%emt 0:00:06]} d6 {[%emt 0:00:04]} 3. Bb5+ {[%emt 0:00:05]} Nd7 {[%emt 0:00:06]} 4. a4 {[%emt 0:00:11]} Ngf6 {[%emt 0:02:12]} 5. Nc3 {[%emt 0:00:21]} g6 {[%emt 0:01:46]} 6. O-O {[%emt 0:00:57]} Bg7 {[%emt 0:00:51]} 7. a5 {[%emt 0:01:09]} a6 {[%emt 0:00:06]} 8. Be2 {[%emt 0:00:15]} O-O {[%emt 0:01:59]} 9. d3 {[%emt 0:00:18]} b5 {[%emt 0:02:24]} 10. axb6 {[%emt 0:00:23]} Nxb6 {[%emt 0:00:17]} 11. Qd2 {[%emt 0:00:07]} Bb7 {[%emt 0:08:43]} 12. Qf4 {[%emt 0:01:01]} d5 {[%emt 0:07:11]} 13. Qh4 {[%emt 0:09:00]} e6 {[%emt 0:05:49]} 14. Bg5 {[%emt 0:07:57]} h6 {[%emt 0:00:06]} 15. Bxh6 {[%emt 0:05:40]} dxe4 {[%emt 0:00:06]} 16. dxe4 {[%emt 0:24:24]} Nxe4 {[%emt 0:00:17]} 17. Bg5 {[%emt 0:00:43]} Nxg5 {[%emt 0:22:26]} 18. Nxg5 {[%emt 0:00:48]} Re8 {[%emt 0:00:02]} 19. Rfd1 {[%emt 0:05:09]} Qe7 {[%emt 0:01:47]} 20. Rd3 {[%emt 0:02:59]} Red8 {[%emt 0:03:27]} 21. Rg3 {[%emt 0:03:29]} Rd4 {[%emt 0:01:52]} 22. Qh7+ {[%emt 0:06:14]} Kf8 {[%emt 0:00:01]} 23. Re1 {[%emt 0:01:46]} Nd7 {[%emt 0:04:14]} 24. Bf3 {[%emt 0:05:05]} Nf6 {[%emt 0:04:01]} 25. Qh3 {[%emt 0:00:00]} Rad8 {[%emt 0:10:12]} 26. Bxb7 {[%emt 0:02:48]} Qxb7 {[%emt 0:00:16]} 27. Rf3 {[%emt 0:01:22]} R8d6 {[%emt 0:10:37]} 28. b3 {[%emt 0:06:31]} Qb4 {[%emt 0:06:43]} 29. Kf1 {[%emt 0:02:10]} c4 {[%emt 0:07:47]} 30. Rxf6 {[%emt 0:00:13]} Bxf6 {[%emt 0:00:00]} 31. Nh7+ {[%emt 0:05:42]} Kg7 {[%emt 0:00:00]} 32. Nxf6 {[%emt 0:00:05]} Kxf6 {[%emt 0:00:00]} 33. Ne4+ {[%emt 0:00:27]} Rxe4 {[%emt 0:00:00]} 1/2-1/2

[Event "Slovakian ECo-C Extraliga 2024-25"]
[Site "Slovakia"]
[Date "2025.02.15"]
[Round "5"]
[White "Chovan, Milan"]
[Black "Jurcik, Marian"]
[Result "1/2-1/2"]
[Annotator "ChessBase"]
[ECO "A42"]
[WhiteElo "2325"]
[BlackElo "2411"]
[PlyCount "36"]
[EventDate "2024.09.12"]
[EventType "team-tourn"]
[EventCountry "SVK"]
[SourceTitle "playchess.com"]
[Source "ChessBase"]
[SourceQuality "1"]
[TimeControl "5400+30"]

1. d4 {[%emt 0:00:03]} g6 {[%emt 0:01:45]} 2. c4 {[%emt 0:00:12]} Bg7 {[%emt 0:01:03]} 3. Nc3 {[%emt 0:00:09]} d6 {[%emt 0:01:32]} 4. e4 {[%emt 0:00:15]} Nc6 {[%emt 0:05:44]} 5. d5 {[%emt 0:11:54]} Nd4 {[%emt 0:01:22]} 6. Be3 {[%emt 0:00:19]} c5 {[%emt 0:00:19]} 7. dxc6 {[%emt 0:05:59]} Nxc6 {[%emt 0:00:35]} 8. Qd2 {[%emt 0:01:13]} Nf6 {[%emt 0:06:31]} 9. h3 {[%emt 0:00:16]} b6 {[%emt 0:14:05]} 10. Rc1 {[%emt 0:11:23]} Ne5 {[%emt 0:02:41]} 11. f4 {[%emt 0:08:45]} Ned7 {[%emt 0:00:23]} 12. Be2 {[%emt 0:00:17]} Bb7 {[%emt 0:04:05]} 13. Bf3 {[%emt 0:01:27]} Rb8 {[%emt 0:01:09]} 14. b4 {[%emt 0:00:25]} O-O {[%emt 0:02:13]} 15. Nge2 {[%emt 0:00:07]} Ba6 {[%emt 0:13:17]} 16. Nd4 {[%emt 0:01:49]} Bb7 {[%emt 0:06:32]} 17. O-O {[%emt 0:02:53]} a6 {[%emt 0:00:35]} 18. Nde2 {[%emt 0:03:56]} Re8 {[%emt 0:04:28]} 1/2-1/2

[Event "Slovakian ECo-C Extraliga 2024-25"]
[Site "Slovakia"]
[Date "2025.02.15"]
[Round "5"]
[White "Roubalik, Jakub"]
[Black "Terbe, Zsuzsanna"]
[Result "1-0"]
[Annotator "ChessBase"]
[ECO "D44"]
[WhiteElo "2319"]
[BlackElo "2165"]
[PlyCount "57"]
[EventDate "2024.09.12"]
[EventType "team-tourn"]
[EventCountry "SVK"]
[SourceTitle "playchess.com"]
[Source "ChessBase"]
[SourceQuality "1"]
[TimeControl "5400+30"]

1. d4 {[%emt 0:00:09]} d5 {[%emt 0:00:08]} 2. c4 {[%emt 0:00:18]} c6 {[%emt 0:00:44]} 3. Nf3 {[%emt 0:00:43]} Nf6 {[%emt 0:01:45]} 4. Nc3 {[%emt 0:01:52]} e6 5. Bg5 dxc4 {[%emt 0:00:32]} 6. e4 {[%emt 0:00:09]} b5 {[%emt 0:00:00]} 7. e5 {[%emt 0:01:14]} h6 {[%emt 0:00:00]} 8. Bh4 {[%emt 0:00:36]} g5 {[%emt 0:01:47]} 9. Bg3 {[%emt 0:00:52]} Nd5 {[%emt 0:00:04]} 10. Nd2 {[%emt 0:00:36]} Nd7 {[%emt 0:00:41]} 11. Be2 {[%emt 0:01:43]} Bb7 {[%emt 0:08:29]} 12. a4 {[%emt 0:17:13]} a5 {[%emt 0:06:05]} 13. O-O {[%emt 0:00:35]} Qb6 {[%emt 0:20:20]} 14. axb5 {[%emt 0:08:02]} cxb5 {[%emt 0:03:12]} 15. Nde4 {[%emt 0:15:01]} Rd8 {[%emt 0:12:26]} 16. Nxd5 {[%emt 0:01:49]} Bxd5 {[%emt 0:01:33]} 17. Nc3 {[%emt 0:09:25]} Bg7 {[%emt 0:07:56]} 18. Nxd5 {[%emt 0:02:27]} exd5 {[%emt 0:00:00]} 19. Kh1 {[%emt 0:05:30]} Nf8 {[%emt 0:03:30]} 20. f4 {[%emt 0:01:18]} Ne6 {[%emt 0:04:30]} 21. f5 {[%emt 0:00:41]} Nxd4 {[%emt 0:03:20]} 22. Bh5 {[%emt 0:04:24]} Nxf5 {[%emt 0:04:51]} 23. Rxf5 {[%emt 0:00:23]} O-O {[%emt 0:02:41]} 24. Qf3 {[%emt 0:00:37]} Rd7 {[%emt 0:04:25]} 25. Rf1 {[%emt 0:03:51]} Qe6 {[%emt 0:00:19]} 26. Bg4 {[%emt 0:00:39]} Qg6 {[%emt 0:03:14]} 27. Rf6 {[%emt 0:12:01]} Bxf6 {[%emt 0:00:00]} 28. Bxd7 {[%emt 0:00:03]} Rd8 {[%emt 0:00:00]} 29. Bf5 {[%emt 0:01:09]} 1-0

[Event "Slovakian ECo-C Extraliga 2024-25"]
[Site "Slovakia"]
[Date "2025.02.15"]
[Round "5"]
[White "Havlicek, Libor"]
[Black "Svana, Peter"]
[Result "0-1"]
[Annotator "ChessBase"]
[ECO "A49"]
[WhiteElo "2281"]
[BlackElo "2249"]
[PlyCount "63"]
[EventDate "2024.09.12"]
[EventType "team-tourn"]
[EventCountry "SVK"]
[SourceTitle "playchess.com"]
[Source "ChessBase"]
[SourceQuality "1"]
[TimeControl "5400+30"]

1. Nf3 {[%emt 0:01:23]} Nf6 {[%emt 0:00:22]} 2. d4 {[%emt 0:02:12]} g6 {[%emt 0:00:09]} 3. g3 {[%emt 0:00:05]} Bg7 {[%emt 0:00:05]} 4. Bg2 {[%emt 0:00:04]} O-O {[%emt 0:00:19]} 5. O-O {[%emt 0:00:04]} d5 {[%emt 0:01:24]} 6. c3 {[%emt 0:18:58]} Nbd7 {[%emt 0:06:33]} 7. Nbd2 {[%emt 0:05:23]} c5 {[%emt 0:00:31]} 8. Re1 {[%emt 0:03:38]} cxd4 {[%emt 0:06:40]} 9. cxd4 {[%emt 0:02:57]} b6 {[%emt 0:03:31]} 10. b4 {[%emt 0:01:38]} Bb7 {[%emt 0:01:36]} 11. Bb2 {[%emt 0:04:31]} Rc8 {[%emt 0:05:32]} 12. Qb3 {[%emt 0:02:03]} b5 {[%emt 0:00:59]} 13. a4 {[%emt 0:00:28]} bxa4 {[%emt 0:00:21]} 14. Rxa4 {[%emt 0:00:31]} a6 {[%emt 0:00:22]} 15. e3 {[%emt 0:22:22]} Nb6 {[%emt 0:15:45]} 16. Ra2 {[%emt 0:01:38]} Nc4 {[%emt 0:00:48]} 17. Bf1 {[%emt 0:08:06]} Ne8 {[%emt 0:02:48]} 18. b5 {[%emt 0:00:24]} axb5 {[%emt 0:00:22]} 19. Qxb5 {[%emt 0:00:08]} Ned6 {[%emt 0:00:20]} 20. Qb3 {[%emt 0:00:31]} Bc6 {[%emt 0:12:14]} 21. Ba3 {[%emt 0:05:07]} Nxa3 {[%emt 0:07:10]} 22. Qxa3 {[%emt 0:04:22]} Nc4 {[%emt 0:01:27]} 23. Qb4 {[%emt 0:01:45]} Qd7 {[%emt 0:04:55]} 24. Nb3 {[%emt 0:01:09]} Rb8 {[%emt 0:00:43]} 25. Qc3 {[%emt 0:00:05]} Bb5 {[%emt 0:01:30]} 26. Rb1 {[%emt 0:03:00]} Qf5 {[%emt 0:01:21]} 27. Nfd2 {[%emt 0:00:05]} Rfc8 {[%emt 0:00:47]} 28. Qa1 {[%emt 0:00:55]} e5 {[%emt 0:00:57]} 29. dxe5 {[%emt 0:00:12]} Nxd2 {[%emt 0:06:08]} 30. Rxd2 {[%emt 0:07:28]} Bc4 {[%emt 0:00:12]} 31. Rdb2 {[%emt 0:00:38]} Bxe5 {[%emt 0:00:23]} 32. Bxc4 {[%emt 0:00:00]} 0-1

[Event "Slovakian ECo-C Extraliga 2024-25"]
[Site "Slovakia"]
[Date "2025.02.15"]
[Round "5"]
[White "Straka, Jozef"]
[Black "Petran, Peter"]
[Result "1-0"]
[Annotator "ChessBase"]
[ECO "A80"]
[WhiteElo "2279"]
[BlackElo "2165"]
[PlyCount "109"]
[EventDate "2024.09.12"]
[EventType "team-tourn"]
[EventCountry "SVK"]
[SourceTitle "playchess.com"]
[Source "ChessBase"]
[SourceQuality "1"]
[TimeControl "5400+30"]

1. d4 {[%emt 0:00:06]} f5 {[%emt 0:00:31]} 2. Nf3 {[%emt 0:00:12]} Nf6 {[%emt 0:00:16]} 3. g3 {[%emt 0:00:07]} b6 {[%emt 0:01:02]} 4. Bg2 {[%emt 0:00:15]} Bb7 {[%emt 0:00:05]} 5. c4 {[%emt 0:00:25]} e6 {[%emt 0:00:07]} 6. O-O {[%emt 0:00:15]} Be7 {[%emt 0:01:09]} 7. d5 {[%emt 0:00:51]} Ne4 {[%emt 0:06:02]} 8. Nd4 {[%emt 0:04:33]} c5 {[%emt 0:03:30]} 9. Nb5 {[%emt 0:06:25]} exd5 {[%emt 0:07:58]} 10. cxd5 {[%emt 0:00:56]} d6 {[%emt 0:02:31]} 11. g4 {[%emt 0:24:14]} Nf6 {[%emt 0:12:18]} 12. gxf5 {[%emt 0:02:28]} Qd7 {[%emt 0:03:06]} 13. Qd3 {[%emt 0:05:05]} a6 {[%emt 0:13:53]} 14. N5c3 {[%emt 0:00:33]} b5 {[%emt 0:00:09]} 15. e4 {[%emt 0:01:21]} b4 {[%emt 0:09:49]} 16. Ne2 {[%emt 0:01:34]} a5 {[%emt 0:01:04]} 17. Nd2 {[%emt 0:03:27]} Ba6 {[%emt 0:01:03]} 18. Nc4 {[%emt 0:02:21]} Qb5 {[%emt 0:00:30]} 19. b3 {[%emt 0:01:04]} Nbd7 {[%emt 0:00:13]} 20. Bb2 {[%emt 0:09:53]} Ne5 {[%emt 0:06:31]} 21. Bxe5 {[%emt 0:00:26]} dxe5 {[%emt 0:00:04]} 22. Qg3 {[%emt 0:05:58]} O-O {[%emt 0:10:07]} 23. Qxe5 {[%emt 0:02:32]} Rf7 {[%emt 0:05:04]} 24. Ng3 {[%emt 0:02:10]} Qb8 {[%emt 0:03:46]} 25. Qxb8+ {[%emt 0:02:56]} Rxb8 {[%emt 0:00:03]} 26. e5 {[%emt 0:00:44]} Bxc4 {[%emt 0:00:44]} 27. bxc4 {[%emt 0:00:24]} Ng4 {[%emt 0:01:57]} 28. d6 {[%emt 0:05:58]} Nxe5 {[%emt 0:02:32]} 29. dxe7 {[%emt 0:00:41]} Rxe7 {[%emt 0:00:15]} 30. Rfe1 {[%emt 0:04:17]} Kf8 {[%emt 0:00:14]} 31. Bd5 {[%emt 0:00:32]} a4 {[%emt 0:03:14]} 32. Re3 {[%emt 0:03:09]} b3 {[%emt 0:03:16]} 33. axb3 {[%emt 0:01:15]} axb3 {[%emt 0:00:03]} 34. Rb1 {[%emt 0:01:06]} b2 {[%emt 0:00:05]} 35. Kf1 {[%emt 0:06:44]} Rb4 {[%emt 0:02:07]} 36. Re2 {[%emt 0:00:50]} Nd3 {[%emt 0:00:34]} 37. Be4 {[%emt 0:01:01]} Nf4 {[%emt 0:01:44]} 38. Rexb2 {[%emt 0:01:29]} Rxc4 {[%emt 0:00:13]} 39. Bf3 {[%emt 0:00:56]} Rc3 {[%emt 0:00:25]} 40. Bc6 {[%emt 0:00:42]} Rc7 {[%emt 0:01:06]} 41. Be4 {[%emt 0:00:00]} Re7 {[%emt 0:00:00]} 42. Rc2 {[%emt 0:00:00]} Rxc2 {[%emt 0:00:00]} 43. Bxc2 {[%emt 0:00:00]} Ra7 {[%emt 0:00:00]} 44. Ke1 {[%emt 0:00:00]} Ke7 {[%emt 0:00:00]} 45. Ne4 {[%emt 0:00:00]} c4 {[%emt 0:00:00]} 46. Kd2 {[%emt 0:00:00]} Rd7+ {[%emt 0:00:00]} 47. Kc3 {[%emt 0:00:00]} Rc7 {[%emt 0:00:00]} 48. Kd4 {[%emt 0:00:00]} h6 {[%emt 0:00:00]} 49. Rb5 {[%emt 0:00:00]} Ne2+ {[%emt 0:00:00]} 50. Ke3 {[%emt 0:00:00]} Ng1 {[%emt 0:00:00]} 51. Re5+ {[%emt 0:00:00]} Kf8 {[%emt 0:00:00]} 52. Nd6 {[%emt 0:01:03]} Re7 {[%emt 0:00:00]} 53. Rxe7 {[%emt 0:00:53]} Kxe7 {[%emt 0:00:00]} 54. Nxc4 {[%emt 0:00:07]} Kf6 {[%emt 0:00:00]} 55. f4 {[%emt 0:00:28]} 1-0

[Event "Slovakian ECo-C Extraliga 2024-25"]
[Site "Slovakia"]
[Date "2025.02.15"]
[Round "5"]
[White "Ongut, Tamas Gunes"]
[Black "Plat, Vojtech"]
[Result "1/2-1/2"]
[Annotator "RC"]
[ECO "C45"]
[WhiteElo "2272"]
[BlackElo "2459"]
[PlyCount "47"]
[EventDate "2024.09.12"]
[EventType "team-tourn"]
[EventCountry "SVK"]
[SourceTitle "playchess.com"]
[Source "ChessBase"]
[SourceQuality "1"]
[TimeControl "5400+30"]

1. e4 {[%emt 0:00:09]} e5 {[%emt 0:00:13]} 2. Nf3 {[%emt 0:00:05]} Nc6 {[%emt 0:00:08]} 3. d4 {[%emt 0:00:10]} exd4 {[%emt 0:00:10]} 4. Nxd4 {[%emt 0:00:04]} Nf6 {[%emt 0:03:29]} 5. Nxc6 {[%emt 0:00:11]} bxc6 {[%emt 0:00:07]} 6. e5 {[%emt 0:00:02]} Qe7 {[%emt 0:00:12]} 7. Qe2 {[%emt 0:00:04]} Nd5 {[%emt 0:00:07]} 8. c4 {[%emt 0:00:03]} Ba6 {[%emt 0:00:32]} 9. b3 {[%emt 0:01:47]} g6 {[%emt 0:01:02]} 10. g3 {[%emt 0:01:16]} Bg7 {[%emt 0:00:19]} 11. Bb2 {[%emt 0:01:00]} O-O {[%emt 0:00:12]} 12. Bg2 {[%emt 0:01:37]} Rae8 {[%emt 0:01:02]} 13. O-O {[%emt 0:00:28]} Bxe5 {[%emt 0:00:01]} 14. Qxe5 {[%emt 0:00:03]} Qxe5 {[%emt 0:00:09]} 15. Bxe5 {[%emt 0:00:01]} Rxe5 {[%emt 0:00:10]} 16. cxd5 {[%emt 0:00:03]} Bxf1 {[%emt 0:00:12]} 17. Kxf1 {[%emt 0:00:01]} cxd5 {[%emt 0:00:11]} 18. Nc3 {[%emt 0:00:04]} c6 {[%emt 0:00:10]} 19. Rc1 {[%emt 0:02:20]} Rb8 {[%emt 0:10:56]} 20. Na4 {[%emt 0:15:39]} Rb4 {[%emt 0:10:01]} 21. Rd1 {[%emt 0:04:30]} Kf8 {[%emt 0:13:54]} 22. Bf3 {[%emt 0:00:00]} Re7 {[%emt 0:15:52]} 23. Nc5 {[%emt 0:03:58]} a5 {[%emt 0:01:33]} 24. Na6 {[%emt 0:10:34]} 1/2-1/2